fUSD/lending_fUSD_20240322
["ID","MTS","AMOUNT","RATE_DAILY","PERIOD"]
[320062173,1711126245763,-500.0,0.00021917,2]
[320062174,1711126245773,-500.0,0.00021917,2]
[320062175,1711126245783,-500.0,0.00021917,2]
[320062176,1711126245793,-500.0,0.00021917,2]
[320062177,1711126245802,-500.0,0.00021917,2]
[320062178,1711126245812,-500.0,0.00021917,2]
[320062179,1711126245822,-664.33,0.00021917,2]
[320062180,1711126245833,-500.0,0.00021917,2]
[320062181,1711126245844,-662.71,0.00021917,2]
[320062183,1711126245855,-500.0,0.00021917,2]
[320062185,1711126245866,-500.0,0.00021917,2]
[320062187,1711126245879,-500.0,0.00021917,2]
[320062189,1711126245888,-500.0,0.00021917,2]
[320062191,1711126245899,-439.8615682,0.00021917,2]
[320062193,1711126245908,-500.0,0.00021917,2]
[320062194,1711126245919,-500.0,0.00021917,2]
[320062196,1711126245928,-500.0,0.00021917,2]
[320062198,1711126245937,-500.0,0.00021917,2]
[320062200,1711126245947,-500.0,0.00021917,2]
[320062202,1711126245957,-500.0,0.00021917,2]
[320062204,1711126245966,-500.0,0.00021917,2]
[320062205,1711126245976,-1754.31,0.00021917,2]
[320062206,1711126245986,-500.0,0.00021917,2]
[320062207,1711126245996,-500.0,0.00021917,2]
[320062208,1711126246005,-500.0,0.00021917,2]
[320062209,1711126246015,-500.0,0.00021917,2]
[320062211,1711126246025,-500.0,0.00021917,2]
[320062213,1711126246036,-500.0,0.00021917,2]
[320062215,1711126246046,-500.0,0.00021917,2]
[320062217,1711126246057,-500.0,0.00021917,2]
[320062218,1711126246068,-500.0,0.00021917,2]
[320062219,1711126246078,-500.0,0.00021917,2]
[320062220,1711126246088,-500.0,0.00021917,2]
[320062221,1711126246099,-500.0,0.00021917,2]
[320062222,1711126246110,-500.0,0.00021917,2]
[320062223,1711126246120,-500.0,0.00021917,2]
[320062224,1711126246131,-500.0,0.00021917,2]
[320062225,1711126246141,-997.69,0.00021917,2]
[320062226,1711126246150,-500.0,0.00021917,2]
[320062227,1711126246161,-500.0,0.00021917,2]
[320062228,1711126246178,-500.0,0.00021917,2]
[320062229,1711126246189,-1009.48,0.00021917,2]
[320062230,1711126246200,-500.0,0.00021917,2]
[320062231,1711126246211,-500.0,0.00021917,2]
[320062232,1711126246223,-500.0,0.00021917,2]
[320062233,1711126246233,-500.0,0.00021917,2]
[320062234,1711126246243,-500.0,0.00021917,2]
[320062235,1711126246253,-500.0,0.00021917,2]
[320062236,1711126246263,-500.0,0.00021917,2]
[320062237,1711126246272,-500.0,0.00021917,2]
[320062238,1711126246282,-500.0,0.00021917,2]
[320062239,1711126246292,-500.0,0.00021917,2]
[320062240,1711126246302,-500.0,0.00021917,2]
[320062241,1711126246312,-500.0,0.00021917,2]
[320062242,1711126246321,-500.0,0.00021917,2]
[320062243,1711126246331,-500.0,0.00021917,2]
[320062244,1711126246344,-500.0,0.00021917,2]
[320062245,1711126246355,-500.0,0.00021917,2]
[320062246,1711126246365,-636.61650882,0.00021917,2]
[320062247,1711126246375,-796.83,0.00021917,2]
[320062248,1711126246385,-500.0,0.00021917,2]
[320062249,1711126246395,-500.0,0.00021917,2]
[320062250,1711126246404,-500.0,0.00021917,2]
[320062251,1711126246414,-500.0,0.00021917,2]
[320062252,1711126246427,-500.0,0.00021917,2]
[320062253,1711126246437,-500.0,0.00021917,2]
[320062254,1711126246446,-500.0,0.00021917,2]
[320062255,1711126246456,-500.0,0.00021917,2]
[320062256,1711126246466,-500.0,0.00021917,2]
[320062257,1711126246476,-500.0,0.00021917,2]
[320062258,1711126246485,-500.0,0.00021917,2]
[320062259,1711126246495,-500.0,0.00021917,2]
[320062260,1711126246504,-500.0,0.00021917,2]
[320062261,1711126246514,-500.0,0.00021917,2]
[320062262,1711126246524,-500.0,0.00021917,2]
[320062263,1711126246533,-500.0,0.00021917,2]
[320062264,1711126246543,-622.26,0.00021917,2]
[320062265,1711126246553,-500.0,0.00021917,2]
[320062266,1711126246562,-500.0,0.00021917,2]
[320062267,1711126246572,-500.0,0.00021917,2]
[320062268,1711126246582,-583.57175115,0.00021917,2]
[320062269,1711126246591,-500.0,0.00021917,2]
[320062270,1711126246600,-500.0,0.00021917,2]
[320062271,1711126246610,-500.0,0.00021917,2]
[320062272,1711126246619,-500.0,0.00021917,2]
[320062273,1711126246629,-500.0,0.00021917,2]
[320062274,1711126246638,-500.0,0.00021917,2]
[320062275,1711126246647,-500.0,0.00021917,2]
[320062276,1711126246657,-500.0,0.00021917,2]
[320062277,1711126246668,-500.0,0.00021917,2]
[320062278,1711126246677,-500.0,0.00021917,2]
[320062279,1711126246687,-909.08,0.00021917,2]
[320062280,1711126246697,-500.0,0.00021917,2]
[320062281,1711126246707,-500.0,0.00021917,2]
[320062282,1711126246716,-500.0,0.00021917,2]
[320062283,1711126246726,-500.0,0.00021917,2]
[320062284,1711126246736,-500.0,0.00021917,2]
[320062285,1711126246746,-500.0,0.00021917,2]
[320062286,1711126246756,-500.0,0.00021917,2]
[320062287,1711126246766,-500.0,0.00021917,2]
[320062288,1711126246776,-500.0,0.00021917,2]
[320062289,1711126246785,-500.0,0.00021917,2]
[320062290,1711126246795,-500.0,0.00021917,2]
[320062291,1711126246805,-500.0,0.00021917,2]
[320062292,1711126246815,-500.0,0.00021917,2]
[320062293,1711126246825,-500.0,0.00021917,2]
[320062294,1711126246835,-500.0,0.00021917,2]
[320062295,1711126246845,-500.0,0.00021917,2]
[320062296,1711126246855,-500.0,0.00021917,2]
[320062297,1711126246870,-500.0,0.00021917,2]
[320062298,1711126246880,-500.0,0.00021917,2]
[320062299,1711126246891,-500.0,0.00021917,2]
[320062300,1711126246902,-500.0,0.00021917,2]
[320062301,1711126246913,-500.0,0.00021917,2]
[320062302,1711126246929,-500.0,0.00021917,2]
[320062303,1711126246941,-500.0,0.00021917,2]
[320062304,1711126246952,-1202.93,0.00021917,2]
[320062305,1711126246963,-500.0,0.00021917,2]
[320062306,1711126246975,-500.0,0.00021917,2]
[320062307,1711126246987,-500.0,0.00021917,2]
[320062308,1711126246999,-500.0,0.00021917,2]
[320062309,1711126247010,-500.0,0.00021917,2]
[320062310,1711126247022,-500.0,0.00021917,2]
[320062311,1711126247033,-500.0,0.00021917,2]
[320062312,1711126247045,-500.0,0.00021917,2]
[320062313,1711126247056,-500.0,0.00021917,2]
[320062314,1711126247067,-621.18,0.00021917,2]
[320062315,1711126247079,-500.0,0.00021917,2]
[320062316,1711126247091,-500.0,0.00021917,2]
[320062317,1711126247103,-500.0,0.00021917,2]
[320062318,1711126247115,-500.0,0.00021917,2]
[320062319,1711126247126,-500.0,0.00021917,2]
[320062320,1711126247139,-829.94,0.00021917,2]
[320062321,1711126247150,-500.0,0.00021917,2]
[320062322,1711126247162,-364.99026348,0.00021917,2]
[320062323,1711126247183,-500.0,0.00021917,2]
[320062324,1711126247195,-500.0,0.00021917,2]
[320062325,1711126247207,-500.0,0.00021917,2]
[320062326,1711126247219,-500.0,0.00021917,2]
[320062327,1711126247231,-500.0,0.00021917,2]
[320062328,1711126247241,-500.0,0.00021917,2]
[320062329,1711126247252,-500.0,0.00021917,2]
[320062330,1711126247264,-814.55,0.00021917,2]
[320062331,1711126247276,-500.0,0.00021917,2]
[320062332,1711126247286,-500.0,0.00021917,2]
[320062333,1711126247297,-500.0,0.00021917,2]
[320062334,1711126247308,-500.0,0.00021917,2]
[320062335,1711126247319,-500.0,0.00021917,2]
[320062336,1711126247329,-500.0,0.00021917,2]
[320062337,1711126247340,-500.0,0.00021917,2]
[320062338,1711126247350,-500.0,0.00021917,2]
[320062339,1711126247360,-720.59,0.00021917,2]
[320062340,1711126247371,-500.0,0.00021917,2]
[320062341,1711126247381,-500.0,0.00021917,2]
[320062342,1711126247391,-500.0,0.00021917,2]
[320062343,1711126247401,-500.0,0.00021917,2]
[320062344,1711126247411,-500.0,0.00021917,2]
[320062345,1711126247426,-502.52,0.00021917,2]
[320062346,1711126247436,-500.0,0.00021917,2]
[320062347,1711126247446,-500.0,0.00021917,2]
[320062348,1711126247456,-500.0,0.00021917,2]
[320062349,1711126247466,-729.36,0.00021917,2]
[320062350,1711126247476,-636.54,0.00021917,2]
[320062351,1711126247486,-500.0,0.00021917,2]
[320062352,1711126247496,-500.0,0.00021917,2]
[320062353,1711126247507,-500.0,0.00021917,2]
[320062354,1711126247517,-500.0,0.00021917,2]
[320062355,1711126247527,-500.0,0.00021917,2]
[320062356,1711126247538,-500.0,0.00021917,2]
[320062357,1711126247547,-500.0,0.00021917,2]
[320062358,1711126247558,-500.0,0.00021917,2]
[320062359,1711126247568,-354.2017664,0.00021917,2]
[320062360,1711126247578,-601.94,0.00021917,2]
[320062361,1711126247588,-500.0,0.00021917,2]
[320062362,1711126247598,-500.0,0.00021917,2]
[320062363,1711126247608,-500.0,0.00021917,2]
[320062364,1711126247618,-500.0,0.00021917,2]
[320062365,1711126247628,-500.0,0.00021917,2]
[320062366,1711126247638,-500.60124774,0.00021917,2]
[320062367,1711126247647,-828.15,0.00021917,2]
[320062368,1711126247658,-500.0,0.00021917,2]
[320062369,1711126247673,-500.43833569,0.00021917,2]
[320062370,1711126247683,-500.0,0.00021917,2]
[320062371,1711126247693,-428.721797,0.00021917,2]
[320062372,1711126247703,-500.0,0.00021917,2]
[320062373,1711126247714,-922.01,0.00021917,2]
[320062374,1711126247724,-740.73,0.00021917,2]
[320062375,1711126247734,-609.18,0.00021917,2]
[320062376,1711126247744,-609.18,0.00021917,2]
[320062377,1711126247754,-609.18,0.00021917,2]
[320062378,1711126247764,-501.45413283,0.00021917,2]
[320062379,1711126247773,-500.0,0.00021917,2]
[320062380,1711126247784,-500.0,0.00021917,2]
[320062381,1711126247794,-500.0,0.00021917,2]
[320062382,1711126247804,-530.4791918,0.00021917,2]
[320062383,1711126247814,-500.0,0.00021917,2]
[320062384,1711126247824,-500.0,0.00021917,2]
[320062385,1711126247834,-500.0,0.00021917,2]
[320062386,1711126247849,-500.0,0.00021917,2]
[320062387,1711126247862,-500.0,0.00021917,2]
[320062388,1711126247873,-500.0,0.00021917,2]
[320062389,1711126247889,-508.83822036,0.00021917,2]
[320062390,1711126247900,-500.0,0.00021917,2]
[320062391,1711126247911,-500.0,0.00021917,2]
[320062392,1711126247922,-500.0,0.00021917,2]
[320062393,1711126247932,-500.0,0.00021917,2]
[320062394,1711126247943,-500.0,0.00021917,2]
[320062395,1711126247958,-500.0,0.00021917,2]
[320062396,1711126247968,-500.0,0.00021917,2]
[320062397,1711126247981,-501.5783574,0.00021917,2]
[320062398,1711126247991,-500.0,0.00021917,2]
[320062399,1711126248001,-543.91,0.00021917,2]
[320062400,1711126248010,-500.0,0.00021917,2]
[320062401,1711126248020,-500.0,0.00021917,2]
[320062402,1711126248029,-500.0,0.00021917,2]
[320062403,1711126248039,-188.76520528,0.00021917,10]
[320062404,1711126248050,-500.0,0.00021917,2]
[320062405,1711126248060,-500.0,0.00021917,2]
[320062406,1711126248070,-500.0,0.00021917,2]
[320062407,1711126248079,-500.0,0.00021917,2]
[320062408,1711126248089,-500.0,0.00021917,2]
[320062409,1711126248099,-715.91,0.00021917,2]
[320062410,1711126248109,-656.15,0.00021917,2]
[320062411,1711126248119,-500.0,0.00021917,2]
[320062412,1711126248128,-681.54,0.00021917,2]
[320062413,1711126248138,-500.0,0.00021917,2]
[320062414,1711126248147,-500.0,0.00021917,2]
[320062415,1711126248157,-1108.66,0.00021917,2]
[320062416,1711126248168,-500.0,0.00021917,2]
[320062417,1711126248178,-500.0,0.00021917,2]
[320062418,1711126248188,-500.95496518,0.00021917,2]
[320062419,1711126248197,-1278.24,0.00021917,2]
[320062420,1711126248207,-500.0,0.00021917,2]
[320062421,1711126248217,-501.94440022,0.00021917,2]
[320062422,1711126248227,-500.0,0.00021917,2]
[320062423,1711126248236,-500.0,0.00021917,2]
[320062424,1711126248246,-1631.26,0.00021917,2]
[320062425,1711126248255,-500.0,0.00021917,2]
[320062426,1711126248265,-500.0,0.00021917,2]
[320062427,1711126248274,-500.0,0.00021917,2]
[320062428,1711126248283,-500.0,0.00021917,2]
[320062429,1711126248293,-502.77202182,0.00021917,2]
[320062430,1711126248303,-505.72340096,0.00021917,2]
[320062431,1711126248313,-1216.28,0.00021917,2]
[320062432,1711126248322,-501.46914566,0.00021917,2]
[320062433,1711126248332,-658.15,0.00021917,2]
[320062434,1711126248342,-500.0,0.00021917,2]
[320062435,1711126248352,-500.0,0.00021917,2]
[320062436,1711126248361,-500.0,0.00021917,2]
[320062437,1711126248371,-700.09,0.00021917,2]
[320062438,1711126248381,-1536.63,0.00021917,2]
[320062439,1711126248391,-500.0,0.00021917,2]
[320062440,1711126248401,-500.0,0.00021917,2]
[320062441,1711126248411,-502.04021483,0.00021917,2]
[320062442,1711126248422,-500.0,0.00021917,2]
[320062443,1711126248696,-430.05463774,0.00021917,2]
[320062444,1711126248706,-501.5073542,0.00021917,2]
[320062445,1711126248715,-556.78,0.00021917,2]
[320062446,1711126248725,-500.0,0.00021917,2]
[320062447,1711126248735,-1147.19,0.00021917,2]
[320062448,1711126248744,-500.0,0.00021917,2]
[320062449,1711126248754,-500.0,0.00021917,2]
[320062450,1711126248763,-500.0,0.00021917,2]
[320062451,1711126248773,-500.0,0.00021917,2]
[320062452,1711126248782,-504.21397663,0.00021917,2]
[320062453,1711126248791,-500.0,0.00021917,2]
[320062454,1711126248800,-2765.02,0.00021917,2]
[320062455,1711126248810,-500.0,0.00021917,2]
[320062456,1711126248819,-500.0,0.00021917,2]
[320062457,1711126248828,-500.0,0.00021917,2]
[320062458,1711126248838,-501.14936497,0.00021917,2]
[320062459,1711126248852,-579.16,0.00021917,2]
[320062460,1711126248861,-500.0,0.00021917,2]
[320062461,1711126248871,-500.0,0.00021917,2]
[320062462,1711126248881,-500.0,0.00021917,2]
[320062463,1711126248892,-500.0,0.00021917,2]
[320062464,1711126248902,-500.0,0.00021917,2]
[320062465,1711126248911,-500.0,0.00021917,2]
[320062466,1711126248921,-500.0,0.00021917,2]
[320062467,1711126248930,-500.0,0.00021917,2]
[320062468,1711126248939,-500.0,0.00021917,2]
[320062469,1711126248949,-502.77454265,0.00021917,2]
[320062470,1711126248959,-500.0,0.00021917,2]
[320062471,1711126248969,-1018.72,0.00021917,2]
[320062472,1711126248979,-500.0,0.00021917,2]
[320062473,1711126248988,-501.26549501,0.00021917,2]
[320062474,1711126248998,-500.0,0.00021917,2]
[320062475,1711126249007,-500.0,0.00021917,2]
[320062476,1711126249017,-500.0,0.00021917,2]
[320062477,1711126249027,-500.0,0.00021917,2]
[320062478,1711126249036,-501.10250342,0.00021917,2]
[320062479,1711126249045,-2530.0,0.00021917,2]
[320062480,1711126249055,-500.0,0.00021917,2]
[320062481,1711126249064,-504.25523647,0.00021917,2]
[320062482,1711126249074,-500.0,0.00021917,2]
[320062483,1711126249084,-500.0,0.00021917,2]
[320062484,1711126249095,-500.0,0.00021917,2]
[320062485,1711126249106,-500.0,0.00021917,2]
[320062486,1711126249117,-500.0,0.00021917,2]
[320062487,1711126249127,-1306.28,0.00021917,2]
[320062488,1711126249137,-500.0,0.00021917,2]
[320062489,1711126249148,-500.0,0.00021917,2]
[320062490,1711126249158,-904.4,0.00021917,2]
[320062491,1711126249169,-500.92298199,0.00021917,2]
[320062492,1711126249180,-500.0,0.00021917,2]
[320062493,1711126249190,-384.13236765,0.00021917,2]
[320062494,1711126249200,-501.48788873,0.00021917,2]
[320062495,1711126249210,-500.0,0.00021917,2]
[320062496,1711126249220,-502.6117512,0.00021917,2]
[320062497,1711126249231,-500.0,0.00021917,2]
[320062498,1711126249242,-500.0,0.00021917,2]
[320062499,1711126249252,-675.86,0.00021917,2]
[320062500,1711126249262,-502.45006335,0.00021917,2]
[320062501,1711126249271,-500.0,0.00021917,2]
[320062502,1711126249281,-1518.73,0.00021917,2]
[320062503,1711126249291,-500.0,0.00021917,2]
[320062504,1711126249302,-500.0,0.00021917,2]
[320062505,1711126249311,-500.0,0.00021917,2]
[320062506,1711126249320,-502.52230762,0.00021917,2]
[320062507,1711126249330,-500.0,0.00021917,2]
[320062508,1711126249340,-500.0,0.00021917,2]
[320062509,1711126249351,-656.38,0.00021917,2]
[320062510,1711126249361,-1649.52,0.00021917,2]
[320062511,1711126249371,-500.0,0.00021917,2]
[320062512,1711126249381,-502.93923395,0.00021917,2]
[320062513,1711126249391,-500.18669028,0.00021917,2]
[320062514,1711126249401,-500.0,0.00021917,2]
[320062515,1711126249411,-500.0,0.00021917,2]
[320062516,1711126249423,-500.0,0.00021917,2]
[320062517,1711126249434,-501.07672057,0.00021917,2]
[320062518,1711126249444,-500.22185958,0.00021917,2]
[320062519,1711126249456,-318.35711313,0.00021917,2]
[320062520,1711126249467,-500.0,0.00021917,2]
[320062521,1711126249482,-2164.7,0.00021917,2]
[320062522,1711126249498,-500.0,0.00021917,2]
[320062523,1711126249507,-500.0,0.00021917,2]
[320062524,1711126249516,-500.0,0.00021917,2]
[320062525,1711126249525,-500.0,0.00021917,2]
[320062526,1711126249535,-501.69510306,0.00021917,2]
[320062527,1711126249544,-1766.62,0.00021917,2]
[320062528,1711126249553,-569.75593288,0.00021917,2]
[320062529,1711126249563,-500.0,0.00021917,2]
[320062530,1711126249573,-503.07733682,0.00021917,2]
[320062531,1711126249582,-500.0,0.00021917,2]
[320062532,1711126249591,-500.0,0.00021917,2]
[320062533,1711126249601,-500.0,0.00021917,2]
[320062534,1711126249610,-502.36095083,0.00021917,2]
[320062535,1711126249620,-500.0,0.00021917,2]
[320062536,1711126249629,-503.27927921,0.00021917,2]
[320062537,1711126249639,-575.06,0.00021917,2]
[320062538,1711126249648,-503.21439416,0.00021917,2]
[320062539,1711126249657,-500.0,0.00021917,2]
[320062540,1711126249669,-500.0,0.00021917,2]
[320062541,1711126249678,-500.0,0.00021917,2]
[320062542,1711126249686,-501.93665083,0.00021917,2]
[320062543,1711126249694,-500.0,0.00021917,2]
[320062544,1711126249703,-502.96866718,0.00021917,2]
[320062545,1711126249713,-1450.9,0.00021917,2]
[320062546,1711126249722,-500.0,0.00021917,2]
[320062547,1711126249732,-500.0,0.00021917,2]
[320062548,1711126249741,-500.43561352,0.00021917,2]
[320062549,1711126249751,-500.0,0.00021917,2]
[320062550,1711126249760,-776.51,0.00021917,2]
[320062551,1711126249770,-500.0,0.00021917,2]
[320062552,1711126249779,-500.0,0.00021917,2]
[320062553,1711126249789,-500.0,0.00021917,2]
[320062554,1711126249798,-500.0,0.00021917,2]
[320062555,1711126249807,-502.83936228,0.00021917,2]
[320062556,1711126249817,-569.97,0.00021917,2]
[320062557,1711126249826,-1543.21,0.00021917,2]
[320062558,1711126249836,-500.0,0.00021917,2]
[320062559,1711126249845,-1086.8,0.00021917,2]
[320062560,1711126249855,-500.0,0.00021917,2]
[320062561,1711126249864,-500.0,0.00021917,2]
[320062562,1711126249876,-2392.01,0.00021917,2]
[320062563,1711126249886,-500.0,0.00021917,2]
[320062564,1711126249896,-1024.48,0.00021917,2]
[320062565,1711126249906,-525.69,0.00021917,2]
[320062566,1711126249915,-500.0,0.00021917,2]
[320062567,1711126249926,-500.0,0.00021917,2]
[320062568,1711126249936,-513.39,0.00021917,2]
[320062569,1711126249947,-745.08,0.00021917,2]
[320062570,1711126249958,-500.0,0.00021917,2]
[320062571,1711126249968,-500.0,0.00021917,2]
[320062572,1711126249977,-500.0,0.00021917,2]
[320062573,1711126249986,-502.92698582,0.00021917,2]
[320062574,1711126249996,-510.48653619,0.00021917,2]
[320062575,1711126250005,-500.0,0.00021917,2]
[320062576,1711126250015,-508.11124566,0.00021917,2]
[320062577,1711126250025,-502.5213228,0.00021917,2]
[320062578,1711126250035,-1596.98,0.00021917,2]
[320062579,1711126250045,-500.0,0.00021917,2]
[320062580,1711126250055,-1123.11,0.00021917,2]
[320062581,1711126250065,-500.0,0.00021917,2]
[320062582,1711126250074,-500.0,0.00021917,2]
[320062583,1711126250084,-500.0,0.00021917,2]
[320062584,1711126250094,-1559.51,0.00021917,2]
[320062585,1711126250104,-2322.3,0.00021917,2]
[320062586,1711126250113,-505.92767558,0.00021917,2]
[320062587,1711126250122,-500.0,0.00021917,2]
[320062588,1711126250132,-656.34,0.00021917,2]
[320062589,1711126250142,-500.0,0.00021917,2]
[320062590,1711126250151,-793.2,0.00021917,2]
[320062591,1711126250161,-500.84870558,0.00021917,2]
[320062592,1711126250173,-500.0,0.00021917,2]
[320062593,1711126250183,-536.92,0.00021917,2]
[320062594,1711126250194,-870.92,0.00021917,2]
[320062595,1711126250205,-502.78509284,0.00021917,2]
[320062596,1711126250215,-500.0,0.00021917,2]
[320062597,1711126250225,-1078.61,0.00021917,2]
[320062598,1711126250235,-502.6740527,0.00021917,2]
[320062599,1711126250244,-500.0,0.00021917,2]
[320062600,1711126250254,-500.0,0.00021917,2]
[320062601,1711126250264,-500.0,0.00021917,2]
[320062602,1711126250274,-500.0,0.00021917,2]
[320062603,1711126250284,-500.0,0.00021917,2]
[320062604,1711126250294,-500.0,0.00021917,2]
[320062605,1711126250305,-500.0,0.00021917,2]
[320062606,1711126250314,-500.0,0.00021917,2]
[320062607,1711126250325,-500.0,0.00021917,2]
[320062608,1711126250334,-500.0,0.00021917,2]
[320062609,1711126250344,-500.0,0.00021917,2]
[320062610,1711126250355,-500.0,0.00021917,2]
[320062611,1711126250364,-500.80157367,0.00021917,2]
[320062612,1711126250374,-500.0,0.00021917,2]
[320062613,1711126250384,-500.0,0.00021917,2]
[320062614,1711126250393,-841.35,0.00021917,2]
[320062615,1711126250404,-500.0,0.00021917,2]
[320062616,1711126250414,-500.0,0.00021917,2]
[320062617,1711126250427,-500.0,0.00021917,2]
[320062618,1711126250438,-508.65728297,0.00021917,2]
[320062619,1711126250448,-500.0,0.00021917,2]
[320062620,1711126250458,-628.97,0.00021917,2]
[320062621,1711126250467,-2914.69,0.00021917,2]
[320062622,1711126250477,-1518.84,0.00021917,2]
[320062623,1711126250487,-500.0,0.00021917,2]
[320062624,1711126250497,-500.0,0.00021917,2]
[320062625,1711126250506,-500.0,0.00021917,2]
[320062626,1711126250515,-500.0,0.00021917,2]
[320062627,1711126250525,-500.0,0.00021917,2]
[320062628,1711126250535,-500.0,0.00021917,2]
[320062629,1711126250544,-1367.67,0.00021917,2]
[320062630,1711126250553,-1724.4,0.00021917,2]
[320062631,1711126250563,-270.25210628,0.00021917,2]
[320062632,1711126250573,-1922.64,0.00021917,2]
[320062633,1711126250582,-2086.05,0.00021917,2]
[320062634,1711126250591,-500.0,0.00021917,2]
[320062635,1711126250601,-500.0,0.00021917,2]
[320062636,1711126250611,-503.18302124,0.00021917,2]
[320062637,1711126250621,-500.0,0.00021917,2]
[320062638,1711126250630,-2195.87,0.00021917,2]
[320062639,1711126250640,-2246.66,0.00021917,2]
[320062640,1711126250649,-826.79,0.00021917,2]
[320062641,1711126250659,-501.66505617,0.00021917,2]
[320062642,1711126250669,-500.0,0.00021917,2]
[320062643,1711126250678,-1199.13,0.00021917,2]
[320062644,1711126250688,-500.0,0.00021917,2]
[320062645,1711126250698,-500.0,0.00021917,2]
[320062646,1711126250707,-1591.06,0.00021917,2]
[320062647,1711126250717,-1011.06,0.00021917,2]
[320062648,1711126250727,-503.27131634,0.00021917,2]
[320062649,1711126250737,-508.0539551,0.00021917,2]
[320062650,1711126250747,-1847.25,0.00021917,2]
[320062651,1711126250757,-500.0,0.00021917,2]
[320062652,1711126250766,-500.0,0.00021917,2]
[320062653,1711126250776,-500.0,0.00021917,2]
[320062654,1711126250786,-500.0,0.00021917,2]
[320062655,1711126250796,-500.0,0.00021917,2]
[320062656,1711126250806,-500.0,0.00021917,2]
[320062657,1711126250815,-1382.3,0.00021917,2]
[320062658,1711126250825,-500.0,0.00021917,2]
[320062659,1711126250834,-500.0,0.00021917,2]
[320062660,1711126250845,-500.0,0.00021917,2]
[320062661,1711126250855,-1016.58,0.00021917,2]
[320062662,1711126250865,-501.90364932,0.00021917,2]
[320062663,1711126250877,-500.0,0.00021917,2]
[320062664,1711126250886,-2239.49,0.00021917,2]
[320062665,1711126250896,-1914.74,0.00021917,2]
[320062666,1711126250906,-500.0,0.00021917,2]
[320062667,1711126250915,-500.0,0.00021917,2]
[320062668,1711126250925,-1057.9,0.00021917,2]
[320062669,1711126250936,-500.0,0.00021917,2]
[320062670,1711126250945,-500.0,0.00021917,2]
[320062671,1711126250956,-967.87,0.00021917,2]
[320062672,1711126250966,-311.11761584,0.00021917,2]
[320062673,1711126250976,-500.0,0.00021917,2]
[320062674,1711126250985,-500.0,0.00021917,2]
[320062675,1711126250995,-507.62934819,0.00021917,2]
[320062676,1711126251005,-500.0,0.00021917,2]
[320062677,1711126251015,-500.0,0.00021917,2]
[320062678,1711126251026,-200.37847436,0.00021917,2]
[320062679,1711126251035,-502.39683663,0.00021917,2]
[320062680,1711126251046,-500.0,0.00021917,2]
[320062681,1711126251055,-503.50962786,0.00021917,2]
[320062682,1711126251065,-190.00814,0.00021917,2]
[320062683,1711126251074,-1458.0,0.00021917,2]
[320062684,1711126251084,-518.16072598,0.00021917,2]
[320062685,1711126251093,-500.0,0.00021917,2]
[320062686,1711126251102,-1292.27,0.00021917,2]
[320062687,1711126251112,-729.81,0.00021917,2]